bitfinex-derivatives/quotes_BTCF0:USTF0_20210703
["timestamp","ask_amount","ask_price","bid_price","bid_amount"]
[1625342795224,6.69414962,34710.0,34709.0,0.00488453]
[1625342796280,6.69414962,34710.0,34709.0,0.09006967]
[1625342796628,6.68104431,34710.0,34709.0,0.09006967]
[1625342796728,6.69414875,34710.0,34709.0,0.09006967]
[1625342796830,6.69414875,34710.0,34709.0,0.00488453]
[1625342797982,6.69414875,34710.0,34708.0,0.0851876]
[1625342798082,6.69414875,34710.0,34709.0,0.00488496]
[1625342798432,0.91877532,34710.0,34709.0,0.00488496]
[1625342798835,0.91877532,34710.0,34708.0,0.00488515]
[1625342799036,6.68648527,34710.0,34708.0,0.00488515]
[1625342799135,0.01310502,34709.0,34708.0,0.00488515]
[1625342799237,0.07210502,34709.0,34708.0,0.00488515]
[1625342799388,0.13110502,34709.0,34707.0,0.00488561]
[1625342799637,0.13110502,34709.0,34706.0,0.0851962]
[1625342799737,7.58435406,34709.0,34702.0,0.0852005]
[1625342799838,4.5277,34707.0,34702.0,0.0852005]
[1625342799936,4.5867,34707.0,34702.0,0.0852005]
[1625342800035,4.6457,34707.0,34702.0,0.0852005]
[1625342800285,0.01310669,34706.0,34702.0,0.0852005]
[1625342800386,0.01310669,34706.0,34700.0,0.68160401]
[1625342800387,5.73400052,34703.0,34700.0,0.08520641]
[1625342800486,5.95964052,34703.0,34700.0,0.08520641]
[1625342800587,6.07764052,34703.0,34700.0,0.08520641]
[1625342800787,0.07210741,34702.0,34700.0,0.08520641]
[1625342800888,0.13110741,34702.0,34700.0,0.08520641]
[1625342801246,4.3167076,34701.0,34700.0,0.08520641]
[1625342801340,4.3167076,34701.0,34697.0,0.08522159]
[1625342801341,10.04673072,34701.0,34697.0,0.08522159]
[1625342801489,0.72172632,34698.0,34697.0,0.08522159]
[1625342801639,0.83972632,34698.0,34697.0,0.08522159]
[1625342802342,6.58065929,34698.0,34695.0,0.08515837]
[1625342802642,6.56755139,34698.0,34695.0,0.08515837]
[1625342802844,5.72736668,34696.0,34694.0,0.08516888]
[1625342803042,6.04186668,34696.0,34694.0,0.08516888]
[1625342803645,5.72575564,34695.0,34694.0,0.08516888]
[1625342803845,5.78475564,34695.0,34694.0,0.08516888]
[1625342804095,10.01655564,34695.0,34694.0,0.08516888]
[1625342804196,8.50096892,34695.0,34693.0,0.08510036]
[1625342804596,4.20571387,34694.0,34692.0,0.32568317]
[1625342804796,4.26471387,34694.0,34692.0,0.32568317]
[1625342805049,4.20595256,34693.0,34692.0,0.32568317]
[1625342805147,4.26495256,34693.0,34692.0,0.32568317]
[1625342805397,4.505528,34693.0,34692.0,0.32568317]
[1625342805548,4.505528,34693.0,34692.0,0.24057544]
[1625342806958,4.505528,34693.0,34692.0,0.3256307]
[1625342807408,4.505528,34693.0,34692.0,0.24057544]
[1625342809763,3.15967028,34693.0,34692.0,0.24057544]
[1625342812820,3.66349095,34693.0,34692.0,0.24057544]
[1625342813272,3.60449095,34693.0,34692.0,0.50521544]
[1625342813472,0.50382067,34693.0,34692.0,0.50521544]
[1625342814173,0.50382067,34693.0,34692.0,0.56421544]
[1625342814274,1.3433549,34694.0,34692.0,2.77762908]
[1625342814275,0.08426025,34694.0,34692.0,2.77762908]
[1625342814724,0.08426025,34694.0,34693.0,0.00488532]
[1625342814829,0.08428674,34695.0,34693.0,2.21340558]
[1625342815277,0.08428674,34695.0,34693.0,2.20852026]
[1625342815479,0.08428674,34695.0,34694.0,0.24057544]
[1625342815779,0.08428674,34695.0,34694.0,2.45397109]
[1625342820194,0.08447461,34697.0,34694.0,3.64326449]
[1625342820290,0.08447461,34697.0,34694.0,3.70226449]
[1625342820640,0.08447461,34697.0,34695.0,0.00488467]
[1625342820790,0.72172632,34698.0,34696.0,3.39774844]
[1625342820990,0.72172632,34698.0,34696.0,3.45674844]
[1625342821091,0.72172632,34698.0,34697.0,0.00488467]
[1625342821241,0.72172632,34698.0,34697.0,3.4026149]
[1625342821692,0.72172632,34698.0,34697.0,2.21340932]
[1625342821693,0.80616318,34698.0,34697.0,2.21340932]
[1625342823047,0.72172632,34698.0,34697.0,3.40261947]
[1625342823895,0.78072632,34698.0,34697.0,3.40261947]
[1625342823996,1.34515792,34698.0,34697.0,1.19409025]
[1625342824554,1.34515792,34698.0,34697.0,1.18920558]
[1625342824648,2.01896947,34698.0,34697.0,1.18920558]
[1625342825250,2.01896947,34698.0,34689.0,1.5860242]
[1625342825251,5.54892717,34698.0,34691.0,0.08496228]
[1625342825450,5.77221717,34698.0,34691.0,0.08496228]
[1625342825553,0.48115088,34692.0,34691.0,0.08496228]
[1625342825653,0.54015088,34692.0,34691.0,0.08496228]
[1625342825852,0.54015088,34692.0,34689.0,0.67969823]
[1625342825853,3.89911545,34692.0,34689.0,0.08495151]
[1625342826207,3.89911545,34692.0,34690.0,0.0048863]
[1625342826408,1.71572131,34692.0,34690.0,0.0048863]
[1625342826757,6.32909316,34691.0,34690.0,0.0048863]
[1625342826857,2.45158316,34691.0,34690.0,0.0048863]
[1625342827261,2.45158316,34691.0,34689.0,0.08495151]
[1625342827711,2.45158316,34691.0,34690.0,0.0048866]
[1625342827912,1.44242204,34691.0,34690.0,0.0048866]
[1625342828312,1.44242204,34691.0,34689.0,0.00488663]
[1625342828411,2.44952878,34691.0,34689.0,0.00488663]
[1625342828513,3.62462649,34691.0,34689.0,0.00488663]
[1625342829117,2.18235494,34690.0,34689.0,0.00488663]
[1625342829216,2.24135494,34690.0,34689.0,0.00488663]
[1625342835177,2.18235494,34690.0,34689.0,0.00488663]
[1625342835832,0.50367201,34690.0,34689.0,0.00488663]
[1625342836430,1.17549917,34691.0,34689.0,0.51423247]
[1625342836780,1.17549917,34691.0,34690.0,0.00488339]
[1625342837332,0.67169704,34691.0,34690.0,0.08977542]
[1625342837934,0.08413069,34691.0,34690.0,1.19335498]
[1625342838386,0.08413069,34691.0,34690.0,1.25235498]
[1625342839540,0.08413069,34691.0,34690.0,1.31135498]
[1625342840740,0.48115088,34692.0,34690.0,4.87705266]
[1625342841040,0.48115088,34692.0,34691.0,0.00488247]
[1625342841189,0.48115088,34692.0,34691.0,0.12288247]
[1625342841390,0.48115088,34692.0,34691.0,3.518773]
[1625342841741,0.48115088,34692.0,34691.0,3.459773]
[1625342841944,0.48115088,34692.0,34691.0,4.81833141]
[1625342842546,0.48115088,34692.0,34691.0,3.459773]
[1625342844548,0.48115088,34692.0,34691.0,4.81864259]
[1625342845100,0.48115088,34692.0,34691.0,3.459773]
[1625342846003,0.48115088,34692.0,34691.0,3.400773]
[1625342846807,0.48115088,34692.0,34691.0,3.459773]
[1625342847006,0.90349308,34692.0,34691.0,2.27121132]
[1625342847758,0.81892336,34692.0,34691.0,2.27121132]
[1625342848961,0.81892336,34692.0,34691.0,3.46099266]
[1625342849511,0.98815466,34692.0,34691.0,3.46099266]
[1625342849610,0.98815466,34692.0,34691.0,2.27121132]
[1625342850059,0.98815466,34692.0,34691.0,2.21221132]
[1625342850261,1.66409932,34692.0,34691.0,2.21221132]
[1625342850360,1.96860932,34692.0,34691.0,2.21221132]
[1625342852016,1.66409932,34692.0,34691.0,2.21221132]
[1625342852167,1.66409932,34692.0,34691.0,3.40291139]
[1625342852519,0.81958011,34692.0,34691.0,3.40291139]
[1625342852970,0.98859601,34692.0,34691.0,3.40291139]
[1625342853321,1.66521482,34692.0,34691.0,3.40291139]
[1625342853971,1.88648482,34692.0,34691.0,3.40291139]
[1625342854275,2.90123628,34692.0,34691.0,3.40291139]
[1625342854925,1.88648482,34692.0,34691.0,3.40291139]
[1625342855476,2.90138229,34692.0,34691.0,3.40291139]
[1625342858737,2.90138229,34692.0,34691.0,4.76542773]
[1625342859892,2.68011229,34692.0,34691.0,4.76542773]
[1625342860293,1.66521482,34692.0,34691.0,4.76542773]
[1625342860943,0.98859601,34692.0,34691.0,4.76542773]
[1625342861644,1.66631085,34692.0,34691.0,4.76542773]
[1625342861743,1.66631085,34692.0,34691.0,4.82442773]
[1625342862695,1.32757019,34692.0,34691.0,4.82442773]
[1625342863797,0.82012506,34692.0,34691.0,4.82442773]
[1625342864849,1.32717662,34692.0,34691.0,4.82442773]
[1625342865300,0.98820244,34692.0,34691.0,4.82442773]
[1625342867103,1.32646897,34692.0,34691.0,4.82442773]
[1625342868557,0.98820244,34692.0,34691.0,4.82442773]
[1625342869860,1.32667506,34692.0,34691.0,4.82442773]
[1625342870411,0.98820244,34692.0,34691.0,4.82442773]
[1625342872371,1.6645037,34692.0,34691.0,4.82442773]
[1625342872671,0.98820244,34692.0,34691.0,4.82442773]
[1625342877282,1.6643895,34692.0,34691.0,4.82442773]
[1625342879136,2.67909321,34692.0,34691.0,4.82442773]
[1625342881094,2.19794233,34692.0,34691.0,5.12003773]
[1625342881543,1.64974233,34692.0,34691.0,5.17903773]
[1625342881944,1.64974233,34692.0,34691.0,5.91961317]
[1625342882094,1.64974233,34692.0,34691.0,5.92815542]
[1625342882197,0.5923893,34694.0,34691.0,7.46157581]
[1625342882593,0.5923893,34694.0,34692.0,0.01342259]
[1625342882693,0.5923893,34694.0,34692.0,0.07242259]
[1625342882846,0.2542307,34698.0,34693.0,5.60981326]
[1625342883043,0.2542307,34698.0,34693.0,5.74123539]
[1625342883194,0.33869216,34699.0,34693.0,5.74123539]
[1625342883195,0.5929748,34699.0,34697.0,3.74712458]
[1625342883293,0.5929748,34699.0,34697.0,5.10971534]
[1625342883443,0.5929748,34699.0,34697.0,5.22771534]
[1625342883592,0.5929748,34699.0,34698.0,0.00488078]
[1625342883843,0.5929748,34699.0,34698.0,0.36164078]
[1625342883945,0.25428264,34699.0,34698.0,5.47138279]
[1625342884093,0.25428264,34699.0,34698.0,5.95253367]
[1625342884594,0.08481731,34699.0,34698.0,5.95253367]
[1625342884745,0.08481731,34699.0,34698.0,5.89353367]
[1625342885044,0.50700298,34699.0,34698.0,4.30161107]
[1625342885494,0.16905729,34699.0,34698.0,4.30161107]
[1625342885644,1.01304345,34700.0,34698.0,4.30161107]
[1625342885945,1.01304345,34700.0,34699.0,0.00488149]
[1625342886046,1.13104345,34700.0,34699.0,0.00488149]
[1625342886194,0.059,34700.0,34699.0,2.21850719]
[1625342886293,0.118,34700.0,34699.0,2.21850719]
[1625342886595,2.31123677,34700.0,34699.0,1.02655489]
[1625342886743,6.14803677,34700.0,34699.0,1.02655489]
[1625342887347,6.16115288,34700.0,34699.0,1.02655489]
[1625342887797,6.16115288,34700.0,34699.0,0.00488149]
[1625342887798,7.50549808,34700.0,34699.0,0.00488149]
[1625342888050,7.98664896,34700.0,34699.0,0.00488149]
[1625342888401,9.49130871,34700.0,34699.0,0.00488149]
[1625342888599,9.49130871,34700.0,34696.0,0.00488291]
[1625342888749,9.74125871,34700.0,34696.0,0.00488291]
[1625342888949,0.01311728,34699.0,34696.0,0.00488291]
[1625342889149,0.13111728,34699.0,34696.0,0.00488291]
[1625342889401,0.01311741,34698.0,34695.0,0.00488305]
[1625342889501,5.01385774,34697.0,34695.0,0.00488305]
[1625342889603,5.07285774,34697.0,34695.0,0.00488305]
[1625342889753,5.13185774,34697.0,34695.0,0.00488305]
[1625342890001,5.51336885,34696.0,34695.0,0.00488305]
[1625342890101,5.63136885,34696.0,34695.0,0.00488305]
[1625342897629,5.6182515,34696.0,34695.0,0.00488305]
[1625342898078,5.6182515,34696.0,34695.0,0.2604958]
[1625342898627,5.6182515,34696.0,34695.0,0.00488305]
[1625342898628,4.05355477,34696.0,34695.0,0.00488305]
[1625342898976,4.05355477,34696.0,34694.0,0.00488271]
[1625342899178,4.05355477,34696.0,34695.0,1.02238064]
[1625342899577,4.05355477,34696.0,34695.0,1.02726333]
[1625342900879,8.02535477,34696.0,34695.0,1.02726333]
[1625342900980,4.05355477,34696.0,34695.0,1.02726333]
[1625342901080,3.04970119,34696.0,34695.0,1.02726333]
[1625342901681,2.71817053,34696.0,34695.0,1.02726333]
[1625342901782,2.77717053,34696.0,34695.0,1.02726333]
[1625342901931,2.71817053,34696.0,34695.0,1.02726333]
[1625342902734,2.71817053,34696.0,34695.0,2.2200288]
[1625342904086,2.77717053,34696.0,34695.0,2.2200288]
[1625342904187,2.71817053,34696.0,34695.0,1.02726333]
[1625342904488,4.0643467,34696.0,34695.0,1.02726333]
[1625342904991,2.71817053,34696.0,34695.0,2.2200361]
[1625342906143,2.71817053,34696.0,34695.0,2.46061154]
[1625342909450,2.77717053,34696.0,34695.0,2.46061154]
[1625342909551,2.77717053,34696.0,34695.0,1.26783877]
[1625342910003,9.14097165,34696.0,34695.0,1.26783877]
[1625342910203,9.14097165,34696.0,34695.0,1.02726333]
[1625342910505,9.14097165,34696.0,34695.0,0.00488269]
[1625342911008,9.14097165,34696.0,34694.0,0.00485797]
[1625342911107,9.14097165,34696.0,34695.0,0.51122123]
[1625342911510,9.14097165,34696.0,34695.0,0.51607737]
[1625342911611,10.648707,34696.0,34695.0,0.0900587]
[1625342911809,10.66189381,34696.0,34695.0,0.0900587]
[1625342912159,10.66189381,34696.0,34695.0,0.00485614]
[1625342913767,10.66189381,34696.0,34694.0,0.00485627]
[1625342914019,5.627807,34696.0,34694.0,0.00485627]
[1625342914425,5.02203902,34695.0,34694.0,0.00485627]
[1625342914569,5.14003902,34695.0,34694.0,0.00485627]
[1625342915270,3.63346079,34695.0,34694.0,0.00485627]
[1625342915672,3.63346079,34695.0,34694.0,0.34558515]
[1625342915819,3.57446079,34695.0,34694.0,0.34558515]
[1625342916172,3.57446079,34695.0,34694.0,1.02702612]
[1625342916724,2.23526154,34695.0,34694.0,1.02702612]
[1625342917273,2.23526154,34695.0,34694.0,2.21954636]
[1625342919626,1.06344128,34695.0,34694.0,2.21954636]
[1625342919726,1.06344128,34695.0,34694.0,2.43552636]
[1625342924539,1.06344128,34695.0,34694.0,2.21954636]
[1625342924941,2.23546198,34695.0,34694.0,2.21954636]
[1625342926496,2.23546198,34695.0,34694.0,2.46736636]
[1625342930304,2.23546198,34695.0,34694.0,1.27484612]
[1625342930602,5.76286198,34695.0,34694.0,1.27484612]
[1625342931104,2.23546198,34695.0,34694.0,1.27484612]
[1625342931707,2.23546198,34695.0,34694.0,2.46738061]
[1625342932207,2.23546198,34695.0,34694.0,1.27484612]
[1625342932658,2.23546198,34695.0,34694.0,2.4674452]
[1625342942180,2.90691508,34695.0,34694.0,3.14891834]
[1625342945434,2.92009927,34695.0,34694.0,3.14891834]
[1625342947538,4.26348277,34695.0,34694.0,3.14891834]
[1625342949191,4.32248277,34695.0,34694.0,3.14891834]
[1625342949542,4.32248277,34695.0,34694.0,1.95631926]
[1625342949642,4.32248277,34695.0,34694.0,1.70849926]
[1625342949842,8.93178277,34695.0,34694.0,1.70849926]
[1625342949992,4.32248277,34695.0,34694.0,1.70849926]
[1625342952900,4.32248277,34695.0,34694.0,2.90257475]
[1625342957705,4.26348277,34695.0,34694.0,2.90257475]
[1625342960414,8.04578277,34695.0,34694.0,2.90257475]
[1625342960814,8.10478277,34695.0,34694.0,2.90257475]
[1625342960913,8.30918277,34695.0,34694.0,2.90257475]
[1625342961569,4.52688277,34695.0,34694.0,2.90257475]
[1625342961918,4.52688277,34695.0,34694.0,1.70849926]
[1625342962019,4.32248277,34695.0,34694.0,1.70849926]
[1625342962368,4.32248277,34695.0,34694.0,2.9029177]
[1625342964073,4.26348277,34695.0,34694.0,2.9029177]
[1625342964172,4.26348277,34695.0,34694.0,3.2013777]
[1625342964471,4.32248277,34695.0,34694.0,3.2013777]
[1625342964571,4.26348277,34695.0,34694.0,3.2013777]
[1625342965071,4.32248277,34695.0,34694.0,3.2013777]
[1625342966124,4.30929858,34695.0,34694.0,3.2013777]
[1625342966474,4.30929858,34695.0,34694.0,8.00155314]
[1625342966828,4.30929858,34695.0,34694.0,9.36665397]
[1625342967127,4.19129858,34695.0,34694.0,9.36665397]
[1625342967429,2.84791508,34695.0,34694.0,9.36665397]
[1625342967829,2.84791508,34695.0,34694.0,9.42565397]
[1625342967931,2.84791508,34695.0,34694.0,9.48465397]
[1625342968033,2.84791508,34695.0,34694.0,9.49319611]
[1625342968132,1.67589438,34695.0,34694.0,11.02878283]
[1625342968433,1.67589438,34695.0,34694.0,11.26935827]
[1625342968984,0.58967213,34698.0,34694.0,12.97541492]
[1625342969388,0.58967213,34698.0,34695.0,0.00485381]
[1625342969538,0.58933779,34700.0,34699.0,3.4742]
[1625342969837,0.58933779,34700.0,34699.0,0.118]
[1625342969939,0.58933779,34700.0,34699.0,0.06385376]
[1625342970088,0.58933779,34700.0,34699.0,0.12285376]
[1625342970188,0.58933779,34700.0,34699.0,0.06385376]
[1625342970388,0.58933779,34700.0,34699.0,3.98428804]
[1625342970490,0.58933779,34700.0,34699.0,6.09985379]
[1625342971140,0.50505054,34700.0,34699.0,4.56577081]
[1625342972443,1.17643449,34700.0,34699.0,5.07682635]
[1625342972693,0.50444408,34700.0,34699.0,5.07682635]
[1625342973042,0.50444408,34700.0,34699.0,9.22862635]
[1625342973594,0.50444408,34700.0,34699.0,5.07682635]
[1625342974244,0.50417745,34700.0,34699.0,5.07682635]
[1625342974845,1.17610853,34700.0,34699.0,5.07682635]
[1625342978503,1.17610853,34700.0,34699.0,8.85982635]
[1625342979307,0.50407081,34700.0,34699.0,8.85982635]
[1625342979406,0.50407081,34700.0,34699.0,5.07682635]
[1625342981059,0.50365894,34700.0,34699.0,5.07682635]
[1625342981660,0.50395383,34700.0,34699.0,5.07682635]
[1625342982313,0.58806091,34700.0,34699.0,5.07682635]
[1625342982413,0.58806091,34700.0,34699.0,8.99652635]
[1625342982511,0.58806091,34700.0,34699.0,5.07682635]
[1625342982913,0.25214765,34700.0,34699.0,5.07682635]
[1625342984463,0.16804057,34700.0,34699.0,5.07682635]
[1625342984564,0.50381573,34700.0,34699.0,5.07682635]
[1625342985365,1.17452762,34700.0,34699.0,3.71319704]
[1625342987470,1.23352762,34700.0,34699.0,3.65419704]
[1625342987568,2.24001334,34700.0,34699.0,3.65419704]
[1625342987719,2.29901334,34700.0,34699.0,3.65419704]
[1625342987919,2.29901334,34700.0,34699.0,3.64934328]
[1625342988270,4.81499643,34700.0,34699.0,0.85140259]
[1625342988570,5.05557187,34700.0,34699.0,0.85140259]
[1625342988821,5.05557187,34700.0,34699.0,0.25526872]
[1625342989372,5.05557187,34700.0,34698.0,0.59563379]
[1625342989924,4.69674795,34699.0,34698.0,0.59563379]
[1625342990124,4.81474795,34699.0,34698.0,0.59563379]
[1625342990473,4.81474795,34699.0,34698.0,0.25527549]
[1625342991124,4.81474795,34699.0,34698.0,0.59565082]
[1625342991224,9.83394795,34699.0,34698.0,0.59565082]
[1625342991676,9.83394795,34699.0,34698.0,0.25527549]
[1625342995484,4.81474795,34699.0,34698.0,0.25527549]
[1625342997794,9.95534795,34699.0,34698.0,0.25527549]
[1625343000145,9.95534795,34699.0,34697.0,0.85092624]
[1625343000146,9.95534795,34699.0,34697.0,0.59567495]
[1625343000646,0.24057544,34698.0,34697.0,0.59567495]
[1625343000746,4.93701562,34698.0,34697.0,0.59567495]
[1625343000848,4.99601562,34698.0,34697.0,0.59567495]
[1625343001250,8.47491562,34698.0,34697.0,0.51057506]
[1625343001398,8.53391562,34698.0,34697.0,0.51057506]
[1625343002049,5.05501562,34698.0,34697.0,0.51057506]
[1625343002199,5.05501562,34698.0,34697.0,0.51543248]
[1625343002401,5.05501562,34698.0,34697.0,0.17505721]
[1625343002499,5.05501562,34698.0,34697.0,0.51546632]
[1625343002500,3.65424744,34698.0,34697.0,0.51546632]
[1625343002949,3.65424744,34698.0,34697.0,1.19624459]
[1625343003701,7.24194744,34698.0,34697.0,1.19624459]
[1625343005404,3.65424744,34698.0,34697.0,1.19624459]
[1625343011068,7.59494744,34698.0,34697.0,1.19624459]
[1625343012021,3.65424744,34698.0,34697.0,1.19624459]
[1625343012471,3.65424744,34698.0,34697.0,2.21762875]
[1625343014378,8.38414744,34698.0,34697.0,2.21762875]
[1625343014479,3.65424744,34698.0,34697.0,2.21762875]
[1625343016532,8.32164744,34698.0,34697.0,2.21762875]
[1625343016732,8.33482953,34698.0,34697.0,2.21762875]
[1625343017087,8.33482953,34698.0,34697.0,0.51567737]
[1625343017088,9.67787806,34698.0,34697.0,0.51567737]
[1625343018390,9.67787806,34698.0,34697.0,0.08999512]
[1625343019141,5.01047806,34698.0,34697.0,0.08999512]
[1625343019744,5.01047806,34698.0,34697.0,0.00485742]
[1625343020199,5.01047806,34698.0,34697.0,0.60079997]
[1625343020694,5.01047806,34698.0,34697.0,0.51566532]
[1625343021146,5.01047806,34698.0,34697.0,0.60080334]
[1625343022100,9.17077806,34698.0,34697.0,0.60080334]
[1625343022198,5.01047806,34698.0,34697.0,0.60080334]
[1625343022698,5.01047806,34698.0,34697.0,0.83661334]
[1625343022903,3.66742953,34698.0,34697.0,1.43259142]
[1625343023048,3.65424744,34698.0,34697.0,1.43259142]
[1625343023501,2.48017932,34698.0,34697.0,3.64608716]
[1625343026114,2.48017932,34698.0,34697.0,2.45420484]
[1625343026612,2.48017932,34698.0,34697.0,3.64613089]
[1625343028163,1.47381126,34698.0,34697.0,5.00838284]
[1625343029316,2.48178345,34698.0,34697.0,3.64613089]
[1625343031571,3.65821575,34698.0,34697.0,3.64613089]
[1625343039040,3.65821575,34698.0,34697.0,5.00966011]
[1625343039491,3.65821575,34698.0,34697.0,3.64613089]
[1625343040398,3.65821575,34698.0,34697.0,8.57133089]
[1625343040799,3.65821575,34698.0,34697.0,3.64613089]
[1625343040903,3.65821575,34698.0,34697.0,5.00992893]
[1625343042403,5.01056675,34698.0,34697.0,3.64613089]
[1625343044309,5.01056675,34698.0,34697.0,5.01070047]
[1625343044912,5.01056675,34698.0,34697.0,5.00584305]
[1625343045162,5.01056675,34698.0,34697.0,5.01069899]
[1625343048621,5.01056675,34698.0,34697.0,5.00584305]
[1625343048923,5.01056675,34698.0,34697.0,5.01069897]
[1625343051577,5.01056675,34698.0,34697.0,8.95139897]
[1625343051879,3.65821575,34698.0,34697.0,8.95139897]
[1625343052329,3.65821575,34698.0,34697.0,5.01069897]
[1625343053233,8.05621575,34698.0,34697.0,5.01069897]
[1625343053536,3.65821575,34698.0,34697.0,5.01069897]
[1625343053634,5.00852076,34698.0,34697.0,5.01069897]
[1625343056439,5.00852076,34698.0,34697.0,9.76979897]
[1625343058247,3.65821575,34698.0,34697.0,9.76979897]
[1625343058600,3.59921575,34698.0,34697.0,9.76979897]
[1625343058701,3.35864031,34698.0,34697.0,9.82879897]
[1625343058799,3.35864031,34698.0,34697.0,9.88779897]
[1625343058949,3.35864031,34698.0,34697.0,10.12837441]
[1625343059049,3.35864031,34698.0,34697.0,10.07791639]
[1625343059253,3.35864031,34698.0,34697.0,10.13691639]
[1625343059500,0.25388467,34699.0,34697.0,11.67180114]
[1625343059852,0.25388467,34699.0,34698.0,0.01339689]
[1625343060100,0.25388467,34699.0,34698.0,0.13139689]
[1625343060203,0.08471424,34700.0,34698.0,6.44111508]
[1625343060651,0.08471424,34700.0,34699.0,0.01339682]
[1625343060752,0.59233493,34701.0,34699.0,6.38229347]
[1625343060855,0.59233493,34701.0,34699.0,6.37375189]
[1625343060954,0.59233493,34701.0,34700.0,0.24057544]
[1625343061056,0.59233493,34701.0,34700.0,0.29957544]
[1625343061207,0.59233493,34701.0,34700.0,0.30443077]
[1625343061304,0.59233493,34701.0,34700.0,0.36343077]
[1625343061408,0.25398525,34701.0,34700.0,6.66948729]
[1625343061757,0.25398525,34701.0,34700.0,6.61048729]
[1625343061855,0.25398525,34701.0,34700.0,6.66948729]
[1625343062006,0.08472586,34701.0,34700.0,6.66948729]
[1625343062957,0.08472586,34701.0,34700.0,6.61048729]
[1625343063055,0.25379256,34702.0,34700.0,6.61048729]
[1625343063357,0.25379256,34702.0,34701.0,0.00485529]
[1625343063660,0.50709865,34702.0,34701.0,6.30822107]
[1625343063909,0.50709865,34702.0,34701.0,6.36722107]
[1625343064210,0.50672742,34702.0,34701.0,4.83396993]
[1625343064311,0.50672742,34702.0,34701.0,4.89296993]
[1625343064511,0.50618968,34702.0,34701.0,4.89296993]
[1625343064961,0.50618968,34702.0,34701.0,5.01554537]
[1625343065062,0.50618968,34702.0,34701.0,5.07454537]
[1625343065712,0.50618968,34702.0,34701.0,8.75014537]
[1625343065913,0.50618968,34702.0,34701.0,8.80914537]
[1625343066016,0.33740358,34702.0,34701.0,8.80914537]
[1625343066518,0.50615194,34702.0,34701.0,8.80914537]
[1625343066615,0.50615194,34702.0,34701.0,8.75014537]
[1625343066816,0.50615194,34702.0,34701.0,8.69114537]
[1625343066916,0.50615194,34702.0,34701.0,5.01554537]
[1625343067016,0.50574207,34702.0,34701.0,5.01554537]
[1625343067467,1.17994098,34702.0,34701.0,5.01554537]
[1625343068617,1.45909098,34702.0,34701.0,5.01554537]
[1625343069171,2.4720699,34702.0,34701.0,3.65265547]
[1625343069522,2.4720699,34702.0,34701.0,3.71165547]
[1625343069672,2.4720699,34702.0,34701.0,5.01476452]
[1625343069821,1.17994098,34702.0,34701.0,5.01476452]
[1625343070273,2.19453845,34702.0,34701.0,5.01476452]
[1625343070773,2.19453845,34702.0,34701.0,9.97356452]
[1625343071074,2.19453845,34702.0,34701.0,8.61145547]
[1625343071174,2.19453845,34702.0,34701.0,3.65265547]
[1625343071775,2.19453845,34702.0,34701.0,7.24625547]
[1625343072076,2.19453845,34702.0,34701.0,8.60836293]
[1625343072981,1.17994098,34702.0,34701.0,8.60836293]
[1625343073079,1.17994098,34702.0,34701.0,5.01476293]
[1625343073532,2.19514656,34702.0,34701.0,5.01476293]
[1625343074685,2.19514656,34702.0,34701.0,8.95786293]
[1625343074833,2.19514656,34702.0,34701.0,9.21685293]
[1625343075134,2.19514656,34702.0,34701.0,5.27375293]
[1625343075385,0.59299945,34702.0,34701.0,5.27375293]
[1625343076136,0.25426354,34702.0,34701.0,5.27375293]
[1625343076236,0.25426354,34702.0,34701.0,5.07376293]
[1625343077136,0.25426354,34702.0,34701.0,5.01476293]
[1625343077286,0.25426354,34702.0,34701.0,5.07376293]
[1625343077838,0.5929045,34702.0,34701.0,5.07376293]
[1625343078387,0.5929045,34702.0,34701.0,5.01476293]
[1625343078588,0.50809356,34702.0,34701.0,5.01476293]
[1625343078839,0.59288344,34702.0,34701.0,5.01476293]
[1625343079038,0.59288344,34702.0,34701.0,5.07376293]
[1625343079139,0.59288344,34702.0,34701.0,5.01476293]
[1625343079292,0.59288344,34702.0,34701.0,5.07376293]
[1625343079388,0.59288344,34702.0,34701.0,5.01476293]
[1625343079992,0.50773696,34702.0,34701.0,5.01476293]
[1625343080644,1.18441073,34702.0,34701.0,5.01476293]
[1625343081143,2.19952413,34702.0,34701.0,5.01476293]
[1625343081693,1.18441073,34702.0,34701.0,5.07376293]
[1625343082143,0.50773696,34702.0,34701.0,5.07376293]
[1625343083252,0.59308805,34702.0,34701.0,5.07376293]
[1625343083352,0.59308805,34702.0,34701.0,9.37386293]
[1625343084001,0.59308805,34702.0,34701.0,9.43286293]
[1625343084451,0.59337974,34703.0,34701.0,10.96527569]
[1625343084701,0.59337974,34703.0,34701.0,11.46527569]
[1625343084904,0.59337974,34703.0,34702.0,0.00485585]
[1625343085005,0.59337974,34703.0,34702.0,0.06385585]
[1625343085104,0.59412874,34709.0,34702.0,8.12274375]
[1625343085303,0.59412874,34709.0,34708.0,0.48115088]
[1625343085454,0.59412874,34709.0,34708.0,0.83784088]
[1625343085553,0.59412874,34709.0,34708.0,0.89684088]
[1625343085655,0.08497245,34709.0,34708.0,7.19444317]
[1625343085755,0.08497245,34709.0,34708.0,7.19929902]
[1625343085854,0.08497245,34709.0,34708.0,11.50619902]
[1625343086156,0.08497245,34709.0,34708.0,7.19929902]
[1625343086757,0.25476836,34710.0,34708.0,5.66744981]
[1625343087009,0.25476836,34710.0,34709.0,0.00485572]
[1625343087110,0.25476836,34710.0,34709.0,0.06385572]
[1625343087357,0.25476836,34710.0,34709.0,4.82695713]
[1625343087510,0.25476836,34710.0,34709.0,8.44745713]
[1625343087758,0.25476836,34710.0,34709.0,4.82695713]
[1625343088662,0.08495571,34710.0,34709.0,4.82695713]
[1625343089262,0.08495571,34710.0,34709.0,8.45245713]
[1625343089363,0.59396532,34711.0,34709.0,8.45245713]
[1625343089465,0.59396532,34711.0,34709.0,4.82695713]
[1625343089663,0.59396532,34711.0,34710.0,0.00485585]
[1625343089812,0.59396532,34711.0,34710.0,0.06385585]
[1625343089914,0.50905588,34711.0,34710.0,4.76580266]
[1625343090014,0.50905588,34711.0,34710.0,4.82480266]
[1625343090466,0.59397741,34711.0,34710.0,4.82480266]
[1625343090613,0.59397741,34711.0,34710.0,9.37750266]
[1625343091116,0.83420125,34712.0,34710.0,9.37750266]
[1625343091519,0.83420125,34712.0,34711.0,0.00485725]
[1625343091667,0.83420125,34712.0,34711.0,0.06385725]
[1625343091770,0.83420125,34712.0,34711.0,4.82316377]
[1625343091771,0.49510754,34712.0,34711.0,4.82316377]
[1625343092320,0.49510754,34712.0,34711.0,9.13946377]
[1625343092671,0.49510754,34712.0,34711.0,4.82316377]
[1625343092821,0.32547596,34712.0,34711.0,3.46336191]
[1625343094577,0.32547596,34712.0,34711.0,7.98236191]
[1625343094779,0.32547596,34712.0,34711.0,3.46336191]
[1625343094880,0.24057544,34712.0,34711.0,3.46336191]
[1625343094978,0.24057544,34712.0,34711.0,3.40436191]
[1625343095179,0.29957544,34712.0,34711.0,3.40436191]
[1625343095383,1.48451392,34712.0,34711.0,3.40436191]
[1625343095479,1.48451392,34712.0,34711.0,2.21453528]
[1625343095680,1.54351392,34712.0,34711.0,2.21453528]
[1625343095779,1.54351392,34712.0,34711.0,0.51478295]
[1625343095780,2.55852863,34712.0,34711.0,0.51478295]
[1625343096381,3.74241549,34712.0,34711.0,0.51458328]